fUST/lending_fUST_20240506
["ID","MTS","AMOUNT","RATE_DAILY","PERIOD"]
[326488042,1714996235335,-500.0,0.00016438,2]
[326488043,1714996235345,-345.03156772,0.00016438,2]
[326488044,1714996235354,-500.0,0.00016438,2]
[326488045,1714996235363,-500.0,0.00016438,2]
[326488046,1714996235373,-500.0,0.00016438,2]
[326488047,1714996235382,-151.0,0.00016438,2]
[326488048,1714996235392,-500.0,0.00016438,2]
[326488049,1714996235401,-743.08,0.00016438,2]
[326488050,1714996235411,-500.0,0.00016438,2]
[326488051,1714996235421,-577.73,0.00016438,2]
[326488052,1714996235431,-500.0,0.00016438,2]
[326488053,1714996235441,-1308.26,0.00016438,2]
[326488054,1714996235451,-2331.29,0.00016438,2]
[326488055,1714996235460,-500.0,0.00016438,2]
[326488056,1714996235470,-1355.33,0.00016438,2]
[326488057,1714996235480,-744.11,0.00016438,2]
[326488058,1714996235489,-500.0,0.00016438,2]
[326488059,1714996235499,-500.0,0.00016438,2]
[326488060,1714996235510,-500.0,0.00016438,2]
[326488061,1714996235520,-504.83551479,0.00016438,2]
[326488062,1714996235530,-500.4633863,0.00016438,2]
[326488063,1714996235546,-617.39,0.00016438,2]
[326488064,1714996235557,-500.0,0.00016438,2]
[326488065,1714996235568,-500.0,0.00016438,2]
[326488066,1714996235582,-628.04,0.00016438,2]
[326488067,1714996235592,-500.0,0.00016438,2]
[326488068,1714996235605,-500.0,0.00016438,2]
[326488069,1714996235616,-500.0,0.00016438,2]
[326488070,1714996235627,-500.0,0.00016438,2]
[326488071,1714996235637,-1713.87,0.00016438,2]
[326488072,1714996235648,-550.7,0.00016438,2]
[326488073,1714996235659,-511.2858657,0.00016438,2]
[326488074,1714996235669,-1874.88,0.00016438,2]
[326488075,1714996235680,-500.0,0.00016438,2]
[326488076,1714996235691,-500.0,0.00016438,2]
[326488077,1714996235701,-500.0,0.00016438,2]
[326488078,1714996235711,-6528.37,0.00016438,2]
[326488079,1714996235722,-512.02,0.00016438,2]
[326488080,1714996235732,-500.0,0.00016438,2]
[326488081,1714996235742,-500.0,0.00016438,2]
[326488082,1714996235752,-500.0,0.00016438,2]
[326488083,1714996235762,-7646.02,0.00016438,2]
[326488084,1714996235772,-650.4,0.00016438,2]
[326488085,1714996235783,-500.0,0.00016438,2]
[326488086,1714996235793,-1074.36,0.00016438,2]
[326488087,1714996235802,-512.3771795,0.00016438,2]
[326488088,1714996235813,-500.0,0.00016438,2]
[326488089,1714996235826,-500.0,0.00016438,2]
[326488090,1714996235842,-771.79,0.00016438,2]
[326488091,1714996235852,-500.0,0.00016438,2]
[326488092,1714996235862,-500.0,0.00016438,2]
[326488093,1714996235872,-509.44434726,0.00016438,2]
[326488094,1714996235883,-1000.0,0.00016438,2]
[326488095,1714996235893,-1784.9,0.00016438,2]
[326488096,1714996235903,-500.0,0.00016438,2]
[326488097,1714996235914,-729.24,0.00016438,2]
[326488098,1714996235924,-501.38991682,0.00016438,2]
[326488099,1714996235935,-500.0,0.00016438,2]
[326488100,1714996235948,-500.0,0.00016438,2]
[326488101,1714996235958,-500.0,0.00016438,2]
[326488102,1714996235968,-2105.52,0.00016438,2]
[326488103,1714996235978,-822.55,0.00016438,2]
[326488104,1714996235989,-500.0,0.00016438,2]
[326488105,1714996235999,-562.13,0.00016438,2]
[326488106,1714996236009,-3163.39,0.00016438,2]
[326488107,1714996236019,-592.84,0.00016438,2]
[326488108,1714996236032,-500.0,0.00016438,2]
[326488109,1714996236041,-500.0,0.00016438,2]
[326488110,1714996236050,-504.19085343,0.00016438,2]
[326488111,1714996236060,-501.05,0.00016438,2]
[326488112,1714996236070,-2931.46125647,0.00016438,2]
[326488113,1714996236088,-7312.67874353,0.00016438,2]
[326488114,1714996236098,-542.09,0.00016438,2]
[326488115,1714996236108,-500.0,0.00016438,2]
[326488116,1714996236123,-560.24,0.00016438,2]
[326488117,1714996236136,-500.0,0.00016438,2]
[326488118,1714996236146,-10455.83,0.00016438,2]
[326488119,1714996236155,-6518.23,0.00016438,2]
[326488120,1714996236165,-500.0,0.00016438,2]
[326488121,1714996236174,-630.19,0.00016438,2]
[326488122,1714996236183,-500.0,0.00016438,2]
[326488123,1714996236192,-500.0,0.00016438,2]
[326488124,1714996236202,-500.0,0.00016438,2]
[326488125,1714996236211,-500.0,0.00016438,2]
[326488126,1714996236221,-500.0,0.00016438,2]
[326488127,1714996236230,-500.0,0.00016438,2]
[326488128,1714996236240,-500.0,0.00016438,2]
[326488129,1714996236249,-777.8,0.00016438,2]
[326488130,1714996236259,-500.0,0.00016438,2]
[326488131,1714996236268,-500.0,0.00016438,2]
[326488132,1714996236278,-500.0,0.00016438,2]
[326488133,1714996236287,-500.0,0.00016438,2]
[326488134,1714996236297,-500.0,0.00016438,2]
[326488135,1714996236306,-500.0,0.00016438,2]
[326488136,1714996236316,-2381.94,0.00016438,2]
[326488137,1714996236327,-500.0,0.00016438,2]
[326488138,1714996236336,-761.89,0.00016438,2]
[326488139,1714996236347,-820.97,0.00016438,2]
[326488140,1714996236357,-842.05,0.00016438,2]
[326488141,1714996236367,-500.0,0.00016438,2]
[326488142,1714996236376,-500.0,0.00016438,2]
[326488143,1714996236385,-554.37,0.00016438,2]
[326488144,1714996236403,-939.21,0.00016438,2]
[326488145,1714996236413,-500.0,0.00016438,2]
[326488146,1714996236423,-554.57,0.00016438,2]
[326488147,1714996236433,-500.0,0.00016438,2]
[326488148,1714996236442,-561.4,0.00016438,2]
[326488149,1714996236451,-500.0,0.00016438,2]
[326488150,1714996236461,-500.0,0.00016438,2]
[326488151,1714996236470,-167.25064395,0.00016438,2]
[326488152,1714996236480,-500.0,0.00016438,2]
[326488153,1714996236489,-500.0,0.00016438,2]
[326488154,1714996236499,-957.9,0.00016438,2]
[326488155,1714996236511,-500.0,0.00016438,2]
[326488156,1714996236520,-854.89,0.00016438,2]
[326488157,1714996236531,-500.0,0.00016438,2]
[326488158,1714996236540,-616.84,0.00016438,2]
[326488159,1714996236549,-500.0,0.00016438,2]
[326488160,1714996236559,-500.0,0.00016438,2]
[326488161,1714996236568,-500.0,0.00016438,2]
[326488162,1714996236580,-500.0,0.00016438,2]
[326488163,1714996236590,-1090.37,0.00016438,2]
[326488164,1714996236599,-500.0,0.00016438,2]
[326488165,1714996236609,-500.0,0.00016438,2]
[326488166,1714996236619,-6279.28,0.00016438,2]
[326488167,1714996236628,-500.0,0.00016438,2]
[326488168,1714996236638,-500.0,0.00016438,2]
[326488169,1714996236648,-500.0,0.00016438,2]
[326488170,1714996236657,-13784.71,0.00016438,2]
[326488171,1714996236666,-500.0,0.00016438,2]
[326488172,1714996236677,-500.0,0.00016438,2]
[326488173,1714996236687,-1389.25,0.00016438,2]
[326488174,1714996236696,-500.0,0.00016438,2]
[326488175,1714996236706,-2278.6,0.00016438,2]
[326488176,1714996236716,-1081.66,0.00016438,2]
[326488177,1714996236725,-500.0,0.00016438,2]
[326488178,1714996236734,-1340.77,0.00016438,2]
[326488179,1714996236744,-500.0,0.00016438,2]
[326488180,1714996236753,-500.0,0.00016438,2]
[326488181,1714996236762,-500.0,0.00016438,2]
[326488182,1714996236772,-7859.95,0.00016438,2]
[326488183,1714996236781,-578.22,0.00016438,2]
[326488184,1714996236790,-599.37,0.00016438,2]
[326488185,1714996236799,-521.96,0.00016438,2]
[326488186,1714996236809,-3504.71,0.00016438,2]
[326488187,1714996236818,-732.43,0.00016438,2]
[326488188,1714996236829,-596.57,0.00016438,2]
[326488189,1714996236838,-414.93068339,0.00016438,2]
[326488190,1714996236847,-500.0,0.00016438,2]
[326488191,1714996236856,-500.0,0.00016438,2]
[326488192,1714996236865,-1080.23,0.00016438,2]
[326488193,1714996236875,-713.6,0.00016438,2]
[326488194,1714996236884,-1420.39,0.00016438,2]
[326488195,1714996236893,-500.0,0.00016438,2]
[326488196,1714996236902,-500.0,0.00016438,2]
[326488197,1714996236911,-500.0,0.00016438,2]
[326488198,1714996236921,-500.0,0.00016438,2]
[326488199,1714996236930,-494.37921931,0.00016438,2]
[326488200,1714996236943,-500.0,0.00016438,2]
[326488201,1714996236954,-3516.23,0.00016438,2]
[326488202,1714996236964,-500.0,0.00016438,2]
[326488203,1714996236974,-500.0,0.00016438,2]
[326488204,1714996236985,-500.0,0.00016438,2]
[326488205,1714996236995,-500.0,0.00016438,2]
[326488206,1714996237004,-500.0,0.00016438,2]
[326488207,1714996237013,-500.0,0.00016438,2]
[326488208,1714996237024,-1798.13,0.00016438,2]
[326488209,1714996237033,-562.05,0.00016438,2]
[326488210,1714996237042,-604.85,0.00016438,2]
[326488211,1714996237052,-604.85,0.00016438,2]
[326488212,1714996237061,-500.0,0.00016438,2]
[326488213,1714996237070,-418.69406079,0.00016447,2]
[326488214,1714996237081,-273.25764425,0.000165,2]
[326488215,1714996237091,-418.69406079,0.00016501,2]
[326488216,1714996237100,-418.69406079,0.00016555,2]
[326488217,1714996237110,-195.45125908,0.000166,2]
[326488218,1714996237120,-195.45125907,0.000166,2]
[326488219,1714996237130,-418.69406079,0.00016609,2]
[326488220,1714996237139,-418.69406079,0.00016664,2]
[326488221,1714996237149,-738.51337212,0.00016692,2]
[326488222,1714996237162,-255.69577472,0.00016692,2]
[326488223,1714996237171,-203.50602406,0.00016692,2]
[326488224,1714996237181,-233.60974824,0.00016693,2]
[326488225,1714996237190,-335.0619737,0.00016693,2]
[326488226,1714996237200,-522.27929623,0.00016695,2]
[326488227,1714996237209,-409.39448055,0.00016695,2]
[326488228,1714996237218,-235.89828702,0.00016695,2]
[326488229,1714996237228,-468.86536832,0.00016695,2]
[326488230,1714996237237,-549.76744305,0.00016695,2]
[326488231,1714996237247,-254.3561742,0.00016695,2]
[326488232,1714996237256,-1907.45188905,0.00016695,2]
[326488233,1714996237266,-1046.13973102,0.00016695,2]
[326488234,1714996237275,-891.13661831,0.00016695,2]
[326488235,1714996237284,-309.36581937,0.00016695,2]
[326488236,1714996237294,-378.89891027,0.00016695,2]
[326488237,1714996237303,-513.62826991,0.00016695,2]
[326488238,1714996237313,-162.3227602,0.00016695,2]
[326488239,1714996237324,-583.54371118,0.00016695,2]
[326488240,1714996237334,-979.09152187,0.00016695,2]
[326488241,1714996237344,-815.23302663,0.00016695,2]
[326488242,1714996237354,-156.53738893,0.00016695,2]
[326488243,1714996237363,-167.69425849,0.00016695,2]
[326488244,1714996237372,-184.17041407,0.00016696,2]
[326488245,1714996237391,-1621.83475447,0.00016696,2]
[326488246,1714996237416,-309.41211698,0.00016696,2]
[326488247,1714996237426,-500.0,0.00016697,2]
[326488248,1714996237437,-2646.93,0.00016698,2]
[326488249,1714996237447,-27739.13374359,0.00016698,2]
[326488304,1714996239203,-0.45265378,0.00016438,2]
[326488305,1714996239215,-609.94636754,0.00016438,2]
[326488306,1714996239225,-1176.626339,0.00016695,2]
[326488307,1714996239235,-12.96702209,0.00016698,2]
[326488308,1714996239246,-341.78448768,0.00016698,2]
[326488309,1714996239260,-3562.58392509,0.00016698,2]
[326488310,1714996239272,-14381.61919495,0.00016698,2]
[326488366,1714996246017,-415.75112018,0.00016238,2]
[326488367,1714996246031,-415.75112014,0.00016263,2]
[326488368,1714996246041,-415.75112014,0.00016288,2]
[326488369,1714996246051,-591.13,0.00016438,2]
[326488370,1714996246061,-500.0,0.00016438,2]
[326488371,1714996246070,-500.0,0.00016438,2]
[326488372,1714996246079,-500.0,0.00016438,2]
[326488373,1714996246091,-500.0,0.00016438,2]
[326488374,1714996246100,-500.0,0.00016438,2]
[326488375,1714996246109,-500.0,0.00016438,2]
[326488376,1714996246120,-1176.626339,0.00016695,2]
[326488377,1714996246130,-7028.4716266,0.00016698,2]
[326488378,1714996246140,-2857.14,0.00016698,2]
[326488379,1714996246152,-500.0,0.00016698,2]
[326488380,1714996246162,-668.72,0.00016698,2]
[326488381,1714996246171,-500.0,0.00016698,2]
[326488382,1714996246180,-11085.72,0.00016698,2]
[326488383,1714996246189,-220.841311,0.00016698,2]
[326488384,1714996246198,-500.0,0.00016698,2]
[326488385,1714996246207,-4683.296186,0.00016698,2]
[326488386,1714996246216,-4683.296186,0.00016698,2]
[326488387,1714996246225,-500.0,0.00016698,2]
[326488388,1714996246234,-151.0,0.00016698,2]
[326488389,1714996246243,-6818.0,0.00016698,2]
[326488390,1714996246252,-151.0,0.00016698,2]
[326488391,1714996246261,-151.0,0.00016698,2]
[326488392,1714996246270,-151.0,0.00016698,2]
[326488393,1714996246279,-267.018788,0.00016698,2]
[326488394,1714996246288,-267.018788,0.00016698,2]
[326488395,1714996246297,-871.843769,0.00016698,2]
[326488396,1714996246306,-871.843769,0.00016698,2]
[326488397,1714996246315,-299.897753,0.00016698,2]
[326488398,1714996246324,-299.897753,0.00016698,2]
[326488399,1714996246334,-1176.626339,0.00016698,2]
[326488400,1714996246343,-1176.626339,0.00016698,2]
[326488401,1714996246352,-500.0,0.00016712,2]
[326488402,1714996246361,-500.0,0.00016712,2]
[326488403,1714996246370,-500.0,0.00016712,2]
[326488404,1714996246379,-500.0,0.00016712,2]
[326488405,1714996246391,-500.0,0.00016712,2]
[326488406,1714996246400,-500.0,0.00016712,2]
[326488407,1714996246410,-500.0,0.00016712,2]
[326488408,1714996246419,-623.96,0.00016712,2]
[326488409,1714996246428,-1162.49,0.00016712,2]
[326488410,1714996246438,-579.67,0.00016712,2]
[326488411,1714996246447,-501.65969193,0.00016712,2]
[326488412,1714996246457,-257.7313672,0.00016712,2]
[326488413,1714996246467,-500.0,0.00016712,2]
[326488414,1714996246476,-500.0,0.00016712,2]
[326488415,1714996246485,-5606.36,0.00016712,2]
[326488416,1714996246495,-500.0,0.00016712,2]
[326488417,1714996246504,-500.0,0.00016712,2]
[326488418,1714996246514,-554.34410895,0.00016712,2]
[326488419,1714996246524,-2837.61,0.00016712,2]
[326488420,1714996246535,-500.0,0.00016712,2]
[326488421,1714996246544,-500.0,0.00016712,2]
[326488422,1714996246554,-663.02,0.00016712,2]
[326488423,1714996246563,-596.76,0.00016712,2]
[326488424,1714996246573,-519.82,0.00016712,2]
[326488425,1714996246584,-500.0,0.00016712,2]
[326488426,1714996246593,-500.0,0.00016712,2]
[326488427,1714996246602,-707.07,0.00016712,2]
[326488428,1714996246611,-500.0,0.00016712,2]
[326488429,1714996246621,-516.60238426,0.00016712,2]
[326488430,1714996246630,-171.79236116,0.00016712,2]
[326488432,1714996246639,-500.0,0.00016712,2]
[326488433,1714996246649,-151.0,0.00016712,2]
[326488435,1714996246658,-500.0,0.00016712,2]
[326488437,1714996246667,-743.08,0.00016712,2]
[326488439,1714996246677,-500.0,0.00016712,2]
[326488441,1714996246686,-577.73,0.00016712,2]
[326488442,1714996246695,-500.0,0.00016712,2]
[326488444,1714996246706,-151.0,0.00016712,2]
[326488445,1714996246717,-1308.26,0.00016712,2]
[326488446,1714996246727,-2331.29,0.00016712,2]
[326488447,1714996246736,-500.0,0.00016712,2]
[326488448,1714996246746,-151.0,0.00016712,2]
[326488449,1714996246755,-1355.33,0.00016712,2]
[326488450,1714996246764,-744.11,0.00016712,2]
[326488451,1714996246774,-151.0,0.00016712,2]
[326488452,1714996246783,-500.0,0.00016712,2]
[326488453,1714996246792,-500.0,0.00016712,2]
[326488454,1714996246801,-500.0,0.00016712,2]
[326488455,1714996246811,-617.39,0.00016712,2]
[326488456,1714996246820,-500.0,0.00016712,2]
[326488457,1714996246830,-901.530245,0.00016712,2]
[326488458,1714996246841,-901.530245,0.00016712,2]
[326488459,1714996246850,-500.0,0.00016712,2]
[326488460,1714996246859,-628.04,0.00016712,2]
[326488461,1714996246868,-500.0,0.00016712,2]
[326488462,1714996246877,-500.0,0.00016712,2]
[326488463,1714996246886,-500.0,0.00016712,2]
[326488464,1714996246895,-1713.87,0.00016712,2]
[326488465,1714996246904,-550.7,0.00016712,2]
[326488466,1714996246914,-1874.88,0.00016712,2]
[326488467,1714996246923,-500.0,0.00016712,2]
[326488468,1714996246932,-500.0,0.00016712,2]
[326488469,1714996246941,-500.0,0.00016712,2]
[326488470,1714996246954,-6528.37,0.00016712,2]
[326488471,1714996246963,-512.02,0.00016712,2]
[326488472,1714996246972,-500.0,0.00016712,2]
[326488473,1714996246981,-500.0,0.00016712,2]
[326488474,1714996246993,-1036.934773,0.00016712,2]
[326488475,1714996247003,-7646.02,0.00016712,2]
[326488476,1714996247012,-192.22088,0.00016712,2]
[326488477,1714996247022,-1036.934773,0.00016712,2]
[326488480,1714996247053,-650.4,0.00016712,2]
[326488481,1714996247062,-192.22088,0.00016712,2]
[326488482,1714996247071,-151.0,0.00016712,2]
[326488483,1714996247080,-500.0,0.00016712,2]
[326488484,1714996247090,-1074.36,0.00016712,2]
[326488485,1714996247099,-500.0,0.00016712,2]
[326488486,1714996247108,-151.0,0.00016712,2]
[326488487,1714996247117,-771.79,0.00016712,2]
[326488488,1714996247126,-500.0,0.00016712,2]
[326488489,1714996247136,-1915.995398,0.00016712,2]
[326488490,1714996247145,-1915.995398,0.00016712,2]
[326488492,1714996247154,-1000.0,0.00016712,2]
[326488493,1714996247163,-1784.9,0.00016712,2]
[326488495,1714996247172,-500.0,0.00016712,2]
[326488496,1714996247183,-729.24,0.00016712,2]
[326488497,1714996247192,-500.0,0.00016712,2]
[326488498,1714996247206,-500.0,0.00016712,2]
[326488499,1714996247215,-151.0,0.00016712,2]
[326488500,1714996247224,-151.0,0.00016712,2]
[326488501,1714996247234,-151.0,0.00016712,2]
[326488502,1714996247243,-500.0,0.00016712,2]
[326488503,1714996247252,-151.0,0.00016712,2]
[326488504,1714996247261,-151.0,0.00016712,2]
[326488505,1714996247273,-151.0,0.00016712,2]
[326488506,1714996247283,-822.55,0.00016712,2]
[326488507,1714996247293,-500.0,0.00016712,2]
[326488508,1714996247303,-562.13,0.00016712,2]
[326488509,1714996247312,-592.84,0.00016712,2]
[326488510,1714996247322,-3163.39,0.00016712,2]
[326488511,1714996247335,-500.0,0.00016712,2]
[326488512,1714996247344,-151.0,0.00016712,2]
[326488513,1714996247354,-151.0,0.00016712,2]
[326488514,1714996247363,-151.0,0.00016712,2]
[326488515,1714996247373,-500.0,0.00016712,2]
[326488516,1714996247383,-151.0,0.00016712,2]
[326488517,1714996247392,-151.0,0.00016712,2]
[326488518,1714996247402,-501.05,0.00016712,2]
[326488519,1714996247412,-220.053759,0.00016712,2]
[326488520,1714996247422,-10244.14,0.00016712,2]
[326488521,1714996247431,-542.09,0.00016712,2]
[326488522,1714996247441,-500.0,0.00016712,2]
[326488523,1714996247451,-560.24,0.00016712,2]
[326488524,1714996247460,-500.0,0.00016712,2]
[326488525,1714996247469,-10455.83,0.00016712,2]
[326488526,1714996247478,-6518.23,0.00016712,2]
[326488527,1714996247487,-500.0,0.00016712,2]
[326488528,1714996247497,-630.19,0.00016712,2]
[326488529,1714996247506,-500.0,0.00016712,2]
[326488530,1714996247515,-393.23427573,0.00016712,2]
[326488531,1714996247524,-500.0,0.00016712,2]
[326488532,1714996247534,-500.0,0.00016712,2]
[326488533,1714996247543,-500.0,0.00016712,2]
[326488534,1714996247553,-500.0,0.00016712,2]
[326488535,1714996247562,-500.0,0.00016712,2]
[326488536,1714996247571,-777.8,0.00016712,2]
[326488537,1714996247580,-500.0,0.00016712,2]
[326488538,1714996247592,-4683.296186,0.00016712,2]
[326488539,1714996247601,-500.0,0.00016712,2]
[326488540,1714996247609,-4683.296186,0.00016712,2]
[326488541,1714996247618,-500.0,0.00016712,2]
[326488542,1714996247627,-500.0,0.00016712,2]
[326488543,1714996247636,-4683.296186,0.00016712,2]
[326488544,1714996247645,-4683.296186,0.00016712,2]
[326488545,1714996247654,-2381.94,0.00016712,2]
[326488546,1714996247690,-761.89,0.00016712,2]
[326488547,1714996247700,-820.97,0.00016712,2]
[326488548,1714996247710,-842.05,0.00016712,2]
[326488549,1714996247863,-500.0,0.00016712,2]
[326488550,1714996247873,-434.32977983,0.00016712,2]
[326488551,1714996247882,-554.37,0.00016712,2]
[326488552,1714996247892,-939.21,0.00016712,2]
[326488553,1714996247901,-500.0,0.00016712,2]
[326488554,1714996247911,-554.57,0.00016712,2]
[326488555,1714996247920,-500.0,0.00016712,2]
[326488556,1714996247929,-561.4,0.00016712,2]
[326488557,1714996247939,-197.43637,0.00016712,2]
[326488558,1714996247954,-501.56518825,0.00016712,2]
[326488560,1714996247963,-255.92891816,0.00016712,2]
[326488562,1714996247973,-500.0,0.00016712,2]
[326488564,1714996247983,-500.0,0.00016712,2]
[326488566,1714996247994,-957.9,0.00016712,2]
[326488567,1714996248004,-500.0,0.00016712,2]
[326488569,1714996248013,-151.0,0.00016712,2]
[326488570,1714996248023,-151.0,0.00016712,2]
[326488571,1714996248035,-151.0,0.00016712,2]
[326488572,1714996248045,-854.89,0.00016712,2]
[326488573,1714996248059,-500.0,0.00016712,2]
[326488574,1714996248076,-500.0,0.00016712,2]
[326488576,1714996248090,-500.0,0.00016712,2]
[326488578,1714996248102,-500.0,0.00016712,2]
[326488580,1714996248114,-500.0,0.00016712,2]
[326488582,1714996248124,-1090.37,0.00016712,2]
[326488583,1714996248134,-500.0,0.00016712,2]
[326488584,1714996248143,-500.0,0.00016712,2]
[326488585,1714996248152,-6279.28,0.00016712,2]
[326488586,1714996248161,-500.0,0.00016712,2]
[326488587,1714996248170,-500.0,0.00016712,2]
[326488588,1714996248179,-500.0,0.00016712,2]
[326488589,1714996248189,-13784.71,0.00016712,2]
[326488590,1714996248198,-500.0,0.00016712,2]
[326488591,1714996248208,-500.0,0.00016712,2]
[326488592,1714996248217,-1389.25,0.00016712,2]
[326488593,1714996248226,-500.0,0.00016712,2]
[326488595,1714996248236,-2278.6,0.00016712,2]
[326488596,1714996248246,-1081.66,0.00016712,2]
[326488597,1714996248255,-500.0,0.00016712,2]
[326488598,1714996248264,-1340.77,0.00016712,2]
[326488599,1714996248274,-500.0,0.00016712,2]
[326488600,1714996248283,-500.0,0.00016712,2]
[326488601,1714996248293,-7859.95,0.00016712,2]
[326488602,1714996248303,-500.0,0.00016712,2]
[326488603,1714996248314,-578.22,0.00016712,2]
[326488604,1714996248323,-599.37,0.00016712,2]
[326488605,1714996248334,-521.96,0.00016712,2]
[326488606,1714996248345,-3504.71,0.00016712,2]
[326488607,1714996248355,-732.43,0.00016712,2]
[326488608,1714996248364,-596.57,0.00016712,2]
[326488609,1714996248374,-500.0,0.00016712,2]
[326488610,1714996248384,-500.0,0.00016712,2]
[326488611,1714996248393,-1080.23,0.00016712,2]
[326488612,1714996248403,-713.6,0.00016712,2]
[326488613,1714996248412,-1420.39,0.00016712,2]
[326488614,1714996248421,-500.0,0.00016712,2]
[326488615,1714996248430,-500.0,0.00016712,2]
[326488616,1714996248440,-267.018788,0.00016712,2]
[326488617,1714996248449,-267.018788,0.00016712,2]
[326488618,1714996248458,-267.018788,0.00016712,2]
[326488619,1714996248467,-500.0,0.00016712,2]
[326488620,1714996248477,-500.0,0.00016712,2]
[326488622,1714996248486,-267.018788,0.00016712,2]
[326488624,1714996248495,-871.843769,0.00016712,2]
[326488625,1714996248505,-871.843769,0.00016712,2]
[326488627,1714996248515,-267.018788,0.00016712,2]
[326488628,1714996248524,-871.843769,0.00016712,2]
[326488629,1714996248534,-267.018788,0.00016712,2]
[326488630,1714996248543,-500.0,0.00016712,2]
[326488631,1714996248553,-3516.23,0.00016712,2]
[326488632,1714996248564,-871.843769,0.00016712,2]
[326488633,1714996248574,-500.0,0.00016712,2]
[326488635,1714996248584,-871.843769,0.00016712,2]
[326488636,1714996248594,-871.843769,0.00016712,2]
[326488637,1714996248603,-500.0,0.00016712,2]
[326488638,1714996248612,-500.0,0.00016712,2]
[326488639,1714996248622,-299.897753,0.00016712,2]
[326488640,1714996248631,-299.897753,0.00016712,2]
[326488641,1714996248640,-500.0,0.00016712,2]
[326488642,1714996248650,-299.897753,0.00016712,2]
[326488643,1714996248659,-500.0,0.00016712,2]
[326488644,1714996248668,-299.897753,0.00016712,2]
[326488645,1714996248677,-299.897753,0.00016712,2]
[326488646,1714996248686,-299.897753,0.00016712,2]
[326488647,1714996248696,-500.29130209,0.00016712,2]
[326488648,1714996248705,-1798.13,0.00016712,2]
[326488649,1714996248715,-562.05,0.00016712,2]
[326488650,1714996248724,-500.0,0.00016712,2]
[326488651,1714996248734,-1176.626339,0.00016712,2]
[326488652,1714996248743,-1176.626339,0.00016712,2]
[326488653,1714996248752,-1176.626339,0.00016712,2]
[326488654,1714996248762,-591.13,0.00016712,2]
[326488655,1714996248771,-511.17412863,0.00016712,2]
[326488657,1714996248781,-500.0,0.00016712,2]
[326488659,1714996248791,-1176.626339,0.00016712,2]
[326488660,1714996248800,-1176.626339,0.00016712,2]
[326488661,1714996248809,-1176.626339,0.00016712,2]
[326488662,1714996248820,-151.0,0.00016715,2]
[326488663,1714996248829,-1915.995398,0.00016715,2]
[326488664,1714996248840,-1915.995398,0.00016715,2]
[326488665,1714996248849,-500.0,0.00016715,2]
[326488666,1714996248858,-10768.76,0.00016715,2]
[326488667,1714996248867,-905.76,0.00016715,2]
[326488668,1714996248878,-1176.626339,0.00016715,2]
[326488669,1714996248888,-256.98216603,0.00016715,2]
[326488670,1714996249173,-415.75112014,0.00016313,2]
[326488671,1714996249182,-415.75112014,0.00016338,2]
[326488672,1714996249191,-857.97178251,0.00016437,2]
[326488673,1714996249201,-693.37787089,0.00016438,2]
[326488674,1714996292289,154.7215013,9.999e-05,2]
[326488675,1714996292351,154.7215013,9.999e-05,2]
[326488676,1714996306686,154.7215013,9.999e-05,2]